bitfinex/quotes_SOLUSD_20260311
["timestamp","ask_amount","ask_price","bid_price","bid_amount"]
[1773272555993,0.56582949,86.918,86.891,0.59098595]
[1773272556297,0.56582949,86.918,86.892,0.59098595]
[1773272557183,0.56582949,86.916,86.894,0.59098595]
[1773272557396,0.56582949,86.916,86.881,0.59098595]
[1773272557908,0.56582949,86.916,86.882,0.59098595]
[1773272559388,0.56582949,86.914,86.884,0.59098595]
[1773272559591,0.56582949,86.914,86.883,11.50973147]
[1773272559592,0.56582949,86.889,86.853,1.1513707]
[1773272559898,0.56582949,86.879,86.852,12.10482558]
[1773272560699,0.56582949,86.879,86.853,0.54421062]
[1773272561701,0.56582949,86.879,86.855,0.54421062]
[1773272562502,12.06833984,86.878,86.855,0.54421062]
[1773272562700,0.55794596,86.877,86.855,0.54421062]
[1773272563001,2.85100975,86.88,86.855,0.54421062]
[1773272563203,0.55794596,86.879,86.855,0.54421062]
[1773272565100,0.55794596,86.888,86.857,0.54421062]
[1773272566302,0.55794596,86.879,86.856,11.51330938]
[1773272566805,0.55794596,86.879,86.857,0.54421062]
[1773272569615,0.55794596,86.888,86.859,0.54421062]
[1773272570890,0.58899875,86.886,86.861,0.53484836]
[1773272571812,0.58899875,86.879,86.857,0.53484836]
[1773272573992,0.58899875,86.877,86.857,0.53484836]
[1773272575209,0.58899875,86.875,86.856,11.51329031]
[1773272579718,0.58899875,86.875,86.856,0.53484836]
[1773272582530,0.58899875,86.873,86.851,0.53484836]
[1773272583028,11.51092386,86.874,86.851,0.53484836]
[1773272583506,12.09992261,86.874,86.851,0.53484836]
[1773272583908,0.58899875,86.873,86.851,0.53484836]
[1773272584610,0.58899875,86.878,86.853,0.53484836]
[1773272585928,0.58899875,86.878,86.854,11.5135745]
[1773272586117,0.58899875,86.878,86.855,0.53484836]
[1773272588228,0.58899875,86.878,86.857,0.53484836]
[1773272590139,0.58899875,86.869,86.843,0.53484836]
[1773272590325,3.43950247,86.88,86.845,0.53484836]
[1773272590521,0.58899875,86.886,86.861,0.53484836]
[1773272590716,2.85050372,86.9,86.871,0.53484836]
[1773272590717,0.58899875,86.893,86.871,0.53484836]
[1773272597936,11.50853933,86.892,86.871,0.53484836]
[1773272598124,0.58899875,86.891,86.871,0.53484836]
[1773272600233,0.56620138,86.889,86.85,4.00191419]
[1773272600434,0.56620138,86.889,86.852,0.57252812]
[1773272600935,0.56620138,86.879,86.852,0.57252812]
[1773272603937,0.56620138,86.878,86.854,0.57252812]
[1773272604233,0.56620138,86.891,86.861,0.57252812]
[1773272605717,12.07454653,86.894,86.861,0.57252812]
[1773272606117,0.56620138,86.889,86.863,0.57252812]
[1773272608438,0.56620138,86.887,86.863,0.57252812]
[1773272608749,0.56620138,86.887,86.856,0.57252812]
[1773272611233,0.56620138,86.887,86.858,0.57252812]
[1773272611436,0.56620138,86.885,86.858,0.57252812]
[1773272612547,0.56620138,86.885,86.86,0.57252812]
[1773272612742,0.56620138,86.883,86.855,0.57252812]
[1773272613053,0.56620138,86.883,86.856,12.0858375]
[1773272613238,0.56620138,86.883,86.857,0.57252812]
[1773272613640,0.56620138,86.879,86.857,0.57252812]
[1773272615236,0.56620138,86.877,86.851,0.57252812]
[1773272615445,0.56620138,86.869,86.841,11.51529807]
[1773272615642,0.56620138,86.859,86.841,11.51529807]
[1773272616952,0.56620138,86.866,86.842,0.57252812]
[1773272617344,0.56620138,86.866,86.844,0.57252812]
[1773272619056,0.56620138,86.866,86.846,0.57252812]
[1773272621154,0.56620138,86.866,86.847,12.07451159]
[1773272621360,0.56620138,86.866,86.848,0.56000908]
[1773272621863,0.57684677,86.865,86.843,11.51493483]
[1773272622057,0.57684677,86.865,86.843,12.07494391]
[1773272622259,0.57684677,86.865,86.844,0.56000908]
[1773272623662,0.57684677,86.864,86.844,0.56000908]
[1773272623961,0.57684677,86.864,86.845,11.51476768]
[1773272624346,11.5121165,86.865,86.83,2.85050372]
[1773272624347,2.85050372,86.86,86.835,11.51604492]
[1773272624551,0.57684677,86.859,86.83,0.56000908]
[1773272624965,2.85050372,86.86,86.802,1.15204718]
[1773272624966,0.57684677,86.849,86.825,0.56000908]
[1773272625264,0.57684677,86.849,86.821,0.56000908]
[1773272625770,0.57684677,86.849,86.81,5.79050372]
[1773272625771,0.57684677,86.839,86.814,0.56000908]
[1773272630359,0.58024289,86.858,86.821,0.58678075]
[1773272631456,0.58024289,86.858,86.823,0.58678075]
[1773272631849,0.58024289,86.856,86.823,0.58678075]
[1773272633559,0.58024289,86.856,86.824,40.31143462]
[1773272633762,11.51344194,86.855,86.825,0.58678075]
[1773272633967,0.58024289,86.854,86.825,0.58678075]
[1773272636750,0.58024289,86.854,86.827,0.58678075]
[1773272637669,0.58024289,86.852,86.827,0.58678075]
[1773272638756,11.5139722,86.851,86.828,11.51702215]
[1773272639070,0.58024289,86.85,86.829,0.58678075]
[1773272639375,0.58024289,86.849,86.829,0.58678075]
[1773272639859,0.58024289,86.849,86.828,11.51702215]
[1773272640049,0.58024289,86.839,86.818,0.58678075]
[1773272640670,0.58024289,86.839,86.817,11.5184814]
[1773272640671,0.58024289,86.829,86.814,2.94]
[1773272640866,0.58024289,86.829,86.79,4.00461162]
[1773272640867,0.58024289,86.809,86.788,11.52230408]
[1773272641171,2.94,86.839,86.781,0.58678075]
[1773272641172,2.85240515,86.8,86.781,0.58678075]
[1773272641469,11.5196756,86.808,86.77,0.1]
[1773272641470,0.58024289,86.789,86.77,0.1]
[1773272641649,0.58024289,86.789,86.771,11.5245877]
[1773272642050,0.58024289,86.789,86.771,12.11136845]
[1773272642456,40.31886461,86.808,86.772,0.58678075]
[1773272642457,11.5196756,86.808,86.772,0.58678075]
[1773272642669,0.58024289,86.807,86.772,0.58678075]
[1773272643268,0.58024289,86.805,86.774,0.58678075]
[1773272643464,3.43264804,86.8,86.774,0.58678075]
[1773272643665,0.58024289,86.799,86.774,0.58678075]
[1773272643978,0.58024289,86.799,86.77,0.1]
[1773272643979,0.58024289,86.799,86.77,0.68678075]
[1773272644155,0.58024289,86.799,86.771,11.52451359]
[1773272645268,0.58024289,86.789,86.77,0.1]
[1773272645470,2.85240515,86.78,86.77,0.1]
[1773272646158,0.58024289,86.779,86.76,0.1]
[1773272646471,0.58024289,86.779,86.761,11.52591602]
[1773272649478,0.58024289,86.779,86.76,0.1]
[1773272649775,0.49823301,86.769,86.75,0.1]
[1773272649975,0.49823301,86.759,86.75,0.1]
[1773272650175,40.33280324,86.778,86.73,0.1]
[1773272650176,0.29823301,86.749,86.73,0.1]
[1773272650379,2.85240515,86.74,86.73,0.1]
[1773272652264,0.29823301,86.742,86.73,0.1]
[1773272652577,28.81437486,86.763,86.719,11.53149828]
[1773272652578,0.30234671,86.739,86.719,11.53149828]
[1773272652976,11.52856527,86.742,86.705,0.58678075]
[1773272652977,0.20234671,86.729,86.705,11.5333538]
[1773272653180,0.20234671,86.729,86.69,2.85240515]
[1773272653181,0.20234671,86.709,86.681,40.37789517]
[1773272653567,2.85240515,86.72,86.682,0.58678075]
[1773272654276,0.10383605,86.725,86.693,0.58678075]
[1773272654666,0.10383605,86.725,86.701,0.58678075]
[1773272656862,0.10383605,86.725,86.702,11.53375931]
[1773272657063,2.85240515,86.72,86.687,0.58678075]
[1773272658483,2.85240515,86.72,86.689,0.59541417]
[1773272660468,11.53149828,86.719,86.69,11.53535586]
[1773272660673,11.53149828,86.719,86.68,2.95240515]
[1773272660674,2.85240515,86.7,86.68,0.1]
[1773272660871,2.85240515,86.69,86.68,0.1]
[1773272661186,2.85240515,86.69,86.66,2.85240515]
[1773272661187,2.85240515,86.69,86.658,0.59541417]
[1773272661392,40.36024399,86.719,86.65,3.44781932]
[1773272661393,2.94,86.701,86.65,3.44781932]
[1773272661572,2.85240515,86.7,86.661,0.59541417]
[1773272662482,2.80415463,86.7,86.661,0.59541417]
[1773272662668,2.85240515,86.69,86.663,0.59541417]
[1773272664279,11.53415841,86.699,86.662,12.13449704]
[1773272664280,2.85240515,86.68,86.662,12.13449704]
[1773272664487,2.85240515,86.68,86.663,0.59541417]
[1773272664686,0.02234934,86.689,86.664,12.13423074]
[1773272664874,0.02234934,86.689,86.665,0.59541417]
[1773272666180,2.85240515,86.69,86.665,0.59541417]
[1773272666392,2.85240515,86.71,86.671,0.59541417]
[1773272666577,0.02746392,86.709,86.671,0.59541417]
[1773272666775,11.56029211,86.709,86.673,0.59541417]
[1773272667189,11.56029211,86.709,86.672,40.38213032]
[1773272667190,2.85240515,86.72,86.681,0.59541417]
[1773272667387,2.85240515,86.72,86.691,0.59541417]
[1773272667885,11.52883939,86.739,86.701,0.59541417]
[1773272668477,11.52883939,86.739,86.68,2.85240515]
[1773272668478,0.03246167,86.709,86.673,0.59541417]
[1773272668683,2.85240515,86.7,86.673,0.59541417]
[1773272668884,2.85240515,86.7,86.675,0.59541417]
[1773272669084,0.03246167,86.716,86.675,0.59541417]
[1773272669085,2.85240515,86.71,86.675,0.59541417]
[1773272670591,11.53282819,86.709,86.675,0.59541417]
[1773272670792,2.85240515,86.7,86.675,0.59541417]
[1773272672097,2.85240515,86.7,86.677,0.59541417]
[1773272672480,0.04211735,86.699,86.669,2.94]
[1773272672687,2.85240515,86.68,86.652,0.59541417]
[1773272673186,0.04211735,86.689,86.652,0.59541417]
[1773272673393,2.85240515,86.68,86.652,0.59541417]
[1773272674574,0.04211735,86.689,86.654,0.59541417]
[1773272674780,2.85240515,86.7,86.671,0.59541417]
[1773272674975,11.53282819,86.709,86.671,0.59541417]
[1773272675900,0.04678043,86.718,86.681,0.59541417]
[1773272676597,2.85240515,86.71,86.683,0.59541417]
[1773272678900,2.94,86.731,86.059,203.5799852]
[1773272678901,2.85240515,86.72,86.691,0.59541417]
[1773272679878,0.05797746,86.709,86.684,12.13156847]
[1773272680082,0.05797746,86.709,86.685,0.59541417]
[1773272680282,0.05797746,86.709,86.684,11.5361543]
[1773272680504,2.85240515,86.7,86.684,11.5361543]
[1773272681079,0.05797746,86.709,86.68,0.6205385]
[1773272682401,2.85240515,86.7,86.68,0.6205385]
[1773272683290,0.05797746,86.709,86.681,11.53655356]
[1773272683613,0.06854605,86.718,86.682,0.6205385]
[1773272684296,0.06854605,86.728,86.691,0.6205385]
[1773272685798,0.06854605,86.728,86.693,0.6205385]
[1773272686204,0.07260549,86.735,86.701,0.6205385]
[1773272686409,11.529504,86.734,86.701,0.6205385]
[1773272686913,2.85240515,86.74,86.701,0.6205385]
[1773272687218,14.38120229,86.74,86.711,0.6205385]
[1773272687807,11.52813182,86.745,86.713,0.6205385]
[1773272688309,11.52813182,86.745,86.712,40.36350216]
[1773272688310,0.07657221,86.739,86.712,11.53242919]
[1773272688604,2.85240515,86.73,86.712,11.53242919]
[1773272688801,2.85240515,86.73,86.706,0.6205385]
[1773272688982,2.85240515,86.73,86.692,28.83748338]
[1773272688983,2.85240515,86.73,86.707,11.53309421]
[1773272689182,0.07852147,86.729,86.707,11.53309421]
[1773272689910,0.07852147,86.729,86.701,0.59541417]
[1773272691109,2.93664108,86.72,86.688,0.59541417]
[1773272691304,2.93664108,86.72,86.689,0.59541417]
[1773272692307,2.85240515,86.72,86.69,2.85240515]
[1773272692505,2.85240515,86.73,86.691,0.59541417]
[1773272693712,2.86080193,86.73,86.693,0.59541417]
[1773272694013,11.52903384,86.738,86.701,0.59541417]
[1773272694243,11.52903384,86.738,86.711,0.59541417]
[1773272695291,2.86080193,86.74,86.711,0.59541417]
[1773272695611,14.38963886,86.74,86.711,0.59541417]
[1773272695788,2.86080193,86.74,86.713,0.59541417]
[1773272696793,14.3896209,86.74,86.715,0.59541417]
[1773272697895,2.86080193,86.75,86.715,0.59541417]
[1773272698311,0.09682411,86.748,86.715,0.59541417]
[1773272698490,0.09854075,86.739,86.715,0.59541417]
[1773272698694,0.09854075,86.739,86.705,0.59541417]
[1773272698895,0.09854075,86.738,86.707,0.59541417]
[1773272701315,2.86080193,86.75,86.711,0.59541417]
[1773272701614,2.94,86.754,86.711,0.59541417]
[1773272701798,2.94,86.754,86.721,0.59541417]
[1773272702295,0.10357328,86.757,86.721,0.59541417]
[1773272702910,11.52632447,86.758,86.721,0.59541417]
[1773272703311,2.86080193,86.77,86.731,0.59541417]
[1773272703614,11.52529209,86.766,86.733,0.59541417]
[1773272704022,0.1068327,86.779,86.741,0.59541417]
[1773272704402,2.86080193,86.79,86.761,0.59541417]
[1773272704623,0.10843438,86.794,86.761,0.59541417]
[1773272704802,2.86080193,86.77,86.75,0.59541417]
[1773272704996,2.86080193,86.76,86.742,2.94]
[1773272705198,2.86080193,86.77,86.743,0.59541417]
[1773272705500,2.86080193,86.77,86.745,0.59541417]
[1773272705501,2.9708196,86.77,86.745,0.59541417]
[1773272706015,2.86080193,86.77,86.745,0.59541417]
[1773272706321,11.52485334,86.769,86.745,0.59541417]
[1773272706719,2.86080193,86.76,86.738,0.59541417]
[1773272706911,0.11158277,86.759,86.726,0.59541417]
[1773272707598,0.11158277,86.759,86.728,0.59541417]
[1773272708221,11.52618172,86.759,86.731,0.59541417]
[1773272709721,0.11617105,86.758,86.733,0.59541417]
[1773272710417,0.11617105,86.769,86.734,0.59541417]
[1773272710609,2.86080193,86.75,86.728,12.12571475]
[1773272710998,2.86080193,86.76,86.729,0.59541417]
[1773272711616,0.11914273,86.758,86.731,0.59541417]
[1773272711807,0.11914273,86.739,86.696,0.59541417]
[1773272712009,2.86080193,86.71,86.689,0.59541417]
[1773272712819,2.86080193,86.73,86.691,0.59541417]
[1773272713120,2.86080193,86.73,86.701,0.59541417]
[1773272713498,0.12204654,86.751,86.713,0.59541417]
[1773272713818,0.12204654,86.749,86.713,0.59541417]
[1773272714022,2.86080193,86.75,86.721,0.59541417]
[1773272714320,11.52671315,86.755,86.721,0.59541417]
[1773272714907,14.38690248,86.76,86.731,0.59541417]
[1773272715823,11.52578317,86.762,86.733,0.59541417]
[1773272716407,11.6506672,86.762,86.733,0.59541417]
[1773272716708,7.65729399,86.76,86.733,0.59541417]
[1773272718005,11.52618172,86.759,86.734,11.529504]
[1773272718621,11.52618172,86.759,86.735,0.59541417]
[1773272718828,0.12901921,86.766,86.735,0.59541417]
[1773272719725,0.12901921,86.766,86.74,7.65729399]
[1773272720026,11.52515406,86.767,86.741,0.59541417]
[1773272720027,11.6568515,86.767,86.741,0.59541417]
[1773272720325,7.65729399,86.76,86.734,0.61163507]
[1773272720629,7.65729399,86.75,86.727,0.61163507]
[1773272721126,0.13301353,86.759,86.727,0.61163507]
[1773272722218,0.13301353,86.759,86.72,7.65729399]
[1773272722219,0.13431451,86.749,86.721,0.61163507]
[1773272722527,0.13431451,86.757,86.721,0.61163507]
[1773272723319,7.65729399,86.76,86.723,0.61163507]
[1773272723521,0.13560054,86.764,86.731,0.61163507]
[1773272724244,0.13687179,86.759,86.731,0.61163507]
[1773272724424,7.65729399,86.77,86.731,0.61163507]
[1773272725330,11.52485334,86.769,86.733,0.61163507]
[1773272727031,0.14059863,86.768,86.733,0.61163507]
[1773272727427,0.14059863,86.768,86.735,0.61163507]
[1773272729433,11.52437321,86.773,86.741,0.61163507]
[1773272729833,11.52384056,86.777,86.741,0.61163507]
[1773272730019,11.52233027,86.788,86.751,0.61163507]
[1773272730219,0.14419851,86.787,86.751,0.61163507]
[1773272730627,0.14537101,86.779,86.751,0.61163507]
[1773272731634,0.14653005,86.759,86.738,11.5289723]
[1773272732039,0.14653005,86.759,86.738,12.14060737]
[1773272735116,0.14653005,86.759,86.739,0.61163507]
[1773272735314,19.1834156,86.76,86.739,0.61163507]
[1773272736223,19.1834156,86.76,86.708,1.15329612]
[1773272736224,7.65729399,86.78,86.741,0.61163507]
[1773272736428,11.52246304,86.787,86.751,0.61163507]
[1773272736627,2.94,86.788,86.761,0.61163507]
[1773272736830,11.67299862,86.799,86.761,0.61163507]
[1773272737835,0.15320998,86.798,86.761,0.61163507]
[1773272738540,11.51980831,86.807,86.771,0.61163507]
[1773272738724,0.15427898,86.806,86.781,0.61163507]
[1773272738923,3.05614934,86.81,86.762,11.52578317]
[1773272738924,0.2,86.81,86.791,0.61163507]
[1773272739324,0.35427898,86.82,86.801,0.61163507]
[1773272739325,0.2,86.82,86.801,0.61163507]
[1773272739528,11.51821605,86.819,86.801,0.61163507]
[1773272739838,0.2,86.82,86.794,0.61163507]
[1773272740034,0.2,86.82,86.801,0.61163507]
[1773272740625,0.2,86.82,86.77,2.85614934]
[1773272740626,0.15638028,86.809,86.77,2.85614934]
[1773272740829,3.0135622,86.8,86.771,0.64544817]
[1773272741530,7.80796253,86.8,86.771,0.64544817]
[1773272741725,0.15843358,86.799,86.771,0.64544817]
[1773272741930,0.15843358,86.789,86.762,0.64544817]
[1773272743842,11.52219751,86.789,86.764,0.64544817]
[1773272744522,7.65054967,86.78,86.757,0.64544817]
[1773272744723,7.65054967,86.78,86.758,12.17176274]
[1773272744921,7.65054967,86.78,86.759,0.64544817]
[1773272745535,0.16240057,86.779,86.744,0.64544817]
[1773272745738,0.16240057,86.777,86.746,0.64544817]
[1773272745926,7.65054967,86.77,86.746,0.64544817]
[1773272747934,11.52485334,86.769,86.747,11.52777617]
[1773272748137,11.52485334,86.769,86.748,0.64544817]
[1773272748745,7.65054967,86.77,86.748,0.64544817]
[1773272751743,19.17536694,86.77,86.75,0.63970838]
[1773272752127,11.52412363,86.775,86.75,0.63970838]
[1773272752642,7.65054967,86.77,86.75,0.63970838]
[1773272753742,0.17068359,86.768,86.743,12.16790512]
[1773272754747,7.65054967,86.76,86.735,0.63970838]
[1773272755047,0.17155189,86.768,86.735,0.63970838]
[1773272755751,11.52511899,86.767,86.737,0.63970838]
[1773272757750,7.65661787,86.75,86.726,0.63970838]
[1773272757935,0.17409739,86.749,86.717,0.63970838]
[1773272759148,0.17409739,86.749,86.721,0.63970838]
[1773272760253,7.65661787,86.75,86.723,0.63970838]
[1773272760455,0.17655619,86.759,86.723,0.63970838]
[1773272762042,2.85914296,86.8,86.731,0.63970838]
[1773272762043,11.52552589,86.764,86.731,0.63970838]
[1773272762658,11.52485334,86.769,86.741,0.63970838]
[1773272762841,11.52436532,86.773,86.741,0.63970838]
[1773272763247,3.03729163,86.77,86.741,0.63970838]
[1773272763449,0.17814867,86.759,86.733,0.63970838]
[1773272764157,2.85914296,86.76,86.733,0.63970838]
[1773272765562,11.52382205,86.777,86.741,0.63970838]
[1773272765759,0.18046946,86.79,86.751,0.63970838]
[1773272766059,11.52219751,86.789,86.751,0.63970838]
[1773272767251,11.52087005,86.799,86.761,0.63970838]
[1773272767451,11.52087005,86.799,86.763,0.63970838]
[1773272767951,2.85914296,86.79,86.763,0.63970838]
[1773272768146,2.85914296,86.79,86.751,2.94]
[1773272768147,0.18197257,86.769,86.744,0.63970838]
[1773272768354,0.18197257,86.769,86.732,2.94]
[1773272768355,2.85914296,86.75,86.733,0.63970838]
[1773272768658,2.85914296,86.75,86.726,11.53045109]
[1773272768659,2.85914296,86.74,86.726,11.53045109]
[1773272769284,0.1827112,86.75,86.726,11.53045109]
[1773272769561,0.1827112,86.75,86.728,12.17001001]
[1773272769562,11.5275104,86.749,86.728,12.17001001]
[1773272769762,7.66026404,86.74,86.723,0.63970838]
[1773272769970,7.66026404,86.75,86.724,0.63970838]
[1773272771051,11.5275104,86.749,86.724,0.63970838]
[1773272772067,0.18487658,86.739,86.714,0.63970838]
[1773272772252,7.66026404,86.73,86.714,0.63970838]
[1773272772967,7.66026404,86.73,86.711,11.53256218]
[1773272772968,0.18558185,86.729,86.699,0.63970838]
[1773272773174,7.66026404,86.72,86.699,0.63970838]
[1773272774666,7.66026404,86.72,86.701,0.63970838]
[1773272775462,11.53046473,86.727,86.701,0.63970838]
[1773272776164,7.66026404,86.73,86.701,0.63970838]
[1773272776564,7.66026404,86.73,86.703,0.63970838]
[1773272777674,7.66026404,86.74,86.703,0.63970838]
[1773272778370,7.66026404,86.73,86.703,0.63970838]
[1773272778572,11.7186189,86.738,86.705,0.63970838]
[1773272778774,7.66026404,86.73,86.705,0.63970838]
[1773272780568,0.19157573,86.727,86.705,0.63970838]
[1773272780969,0.19157573,86.727,86.692,28.8377228]
[1773272780970,7.66026404,86.71,86.69,3.6087484]
[1773272781356,0.19157573,86.719,86.692,0.6687484]
[1773272781555,7.66026404,86.72,86.692,0.6687484]
[1773272783778,7.66026404,86.72,86.694,0.6687484]
[1773272785892,11.72614431,86.719,86.695,11.53469058]
[1773272786063,7.66026404,86.71,86.69,2.94]
[1773272786484,7.66026404,86.71,86.691,11.5352228]
[1773272787159,7.66026404,86.7,86.69,2.94]
[1773272787571,7.66026404,86.7,86.69,14.47531752]
[1773272787787,7.66026404,86.7,86.69,11.53531752]
[1773272787966,0.19523909,86.709,86.682,0.6687484]
[1773272788581,7.66026404,86.71,86.682,0.6687484]
[1773272788982,0.19640486,86.728,86.691,0.6687484]
[1773272789288,11.72676956,86.728,86.691,0.6687484]
[1773272790374,7.66026404,86.73,86.69,7.66026404]
[1773272790375,11.52902858,86.738,86.701,0.6687484]
[1773272790690,11.72657258,86.738,86.701,0.6687484]
[1773272791588,2.86053505,86.73,86.701,0.6687484]
[1773272791827,28.81671728,86.756,86.701,0.6687484]
[1773272791970,2.86053505,86.74,86.711,0.6687484]
[1773272792288,40.34489117,86.752,86.713,0.6687484]
[1773272792289,2.86053505,86.73,86.713,0.6687484]
[1773272792469,2.86053505,86.73,86.712,11.53242919]
[1773272792793,2.86053505,86.73,86.712,12.20117759]
[1773272793167,11.72762943,86.738,86.713,0.6687484]
[1773272793795,2.86053505,86.74,86.713,0.6687484]
[1773272793976,0.19920412,86.739,86.712,11.53242919]
[1773272794282,11.52771445,86.748,86.712,11.53242919]
[1773272794283,2.86053505,86.73,86.712,11.53242919]
[1773272794582,2.86053505,86.73,86.712,0.6687484]
[1773272795879,2.86053505,86.73,86.696,0.6687484]
[1773272796878,2.86053505,86.73,86.701,0.6687484]
[1773272797182,11.53016868,86.729,86.701,0.6687484]
[1773272797383,2.86053505,86.73,86.701,0.6687484]
[1773272797587,11.52963385,86.734,86.701,0.6687484]
[1773272799193,11.52963385,86.734,86.703,0.6687484]
[1773272800576,2.86053505,86.73,86.705,0.6687484]
[1773272800772,11.52883939,86.739,86.705,0.6687484]
[1773272800974,0.20335983,86.738,86.705,0.6687484]
[1773272801387,11.52821209,86.744,86.705,0.6687484]
[1773272801588,11.7320649,86.744,86.705,0.6687484]
[1773272801790,2.86053505,86.74,86.705,0.6687484]
[1773272801992,3.06438786,86.74,86.705,0.6687484]
[1773272802492,11.52821209,86.744,86.711,0.68705998]
[1773272802788,0.20434012,86.743,86.713,0.68705998]
[1773272803488,11.52767792,86.748,86.713,0.68705998]
[1773272803489,0.20482184,86.739,86.713,0.68705998]
[1773272805296,11.5289723,86.738,86.713,0.68705998]
[1773272805482,0.20576874,86.737,86.713,0.68705998]
[1773272805870,0.20576874,86.737,86.715,0.68705998]
[1773272806983,3.0667691,86.74,86.715,0.68705998]
[1773272807175,0.20623405,86.739,86.715,0.68705998]
[1773272807373,0.20623405,86.739,86.717,0.68705998]
[1773272807576,0.20669401,86.745,86.717,0.68705998]
[1773272807789,0.20669401,86.744,86.717,0.68705998]
[1773272808196,11.52789028,86.747,86.717,0.68705998]
[1773272808385,0.20669401,86.746,86.717,0.68705998]
[1773272808585,0.20714869,86.739,86.717,0.68705998]
[1773272808786,2.86053505,86.74,86.717,0.68705998]
[1773272809190,3.06768374,86.74,86.717,0.68705998]
[1773272809395,0.20714869,86.739,86.717,0.68705998]
[1773272809595,2.86053505,86.74,86.719,0.68705998]
[1773272810687,14.38926234,86.74,86.719,0.68705998]
[1773272810998,0.20848163,86.739,86.719,0.68705998]
[1773272811594,0.20848163,86.739,86.718,11.53163126]
[1773272812002,0.20848163,86.739,86.718,0.65667533]
[1773272812398,0.20891578,86.745,86.718,0.65667533]
[1773272813195,2.86053505,86.75,86.718,0.65667533]
[1773272813987,0.20976917,86.748,86.72,0.65667533]
[1773272814201,0.20976917,86.739,86.716,0.65667533]
[1773272815806,0.20976917,86.739,86.717,11.53176424]
[1773272816000,0.20976917,86.739,86.718,0.65667533]
[1773272816604,2.86053505,86.75,86.718,0.65667533]
[1773272816806,0.21101286,86.749,86.718,0.65667533]
[1773272816990,2.86053505,86.74,86.718,0.65667533]
[1773272817194,0.21101286,86.739,86.718,0.65667533]
[1773272818094,2.86038308,86.74,86.72,0.65667533]
[1773272818496,3.07180101,86.74,86.72,0.65667533]
[1773272820095,0.21141793,86.74,86.721,11.53123234]
[1773272820297,0.21141793,86.74,86.722,0.65667533]
[1773272820496,2.86038308,86.75,86.722,0.65667533]
[1773272821606,0.21299223,86.748,86.722,0.65667533]
[1773272821833,0.21299223,86.739,86.717,11.53168996]
[1773272822313,0.21299223,86.737,86.712,11.53237438]
[1773272822511,0.21299223,86.737,86.712,12.18904971]
[1773272823098,0.21299223,86.737,86.713,0.65667533]
[1773272823619,0.21375252,86.719,86.653,11.54028135]
[1773272823915,0.21375252,86.706,86.654,0.65667533]
[1773272824118,2.86038308,86.7,86.671,0.65667533]
[1773272824292,0.21375252,86.706,86.671,0.65667533]
[1773272824492,0.21412612,86.689,86.66,0.65667533]
[1773272824711,2.94,86.712,86.661,0.65667533]
[1773272824712,2.86038308,86.7,86.661,0.65667533]
[1773272825309,2.86038308,86.69,86.661,0.65667533]
[1773272826095,2.86038308,86.69,86.662,0.65667533]
[1773272826813,11.75034944,86.689,86.662,0.65667533]
[1773272827116,0.21486051,86.688,86.662,0.65667533]
[1773272827614,11.53548893,86.689,86.65,0.1]
[1773272827615,2.86038308,86.67,86.65,0.1]
[1773272827797,0.11522139,86.659,86.632,0.65667533]
[1773272828194,11.65470372,86.659,86.632,0.65667533]
[1773272828514,2.86038308,86.65,86.631,0.65667533]
[1773272828720,2.86038308,86.67,86.631,0.65667533]
[1773272829101,0.11557813,86.669,86.617,1.15450777]
[1773272829410,0.11557813,86.669,86.58,28.97498326]
[1773272829411,0.11557813,86.666,86.612,0.65667533]
[1773272829597,2.86038308,86.64,86.612,0.65667533]
[1773272829913,2.86038308,86.65,86.62,2.86038308]
[1773272830106,11.54081408,86.649,86.621,0.65667533]
[1773272830424,2.94,86.669,86.631,0.65667533]
[1773272830598,11.53740399,86.675,86.641,0.65667533]
[1773272831620,11.53740399,86.675,86.65,2.86038308]
[1773272831914,11.65402792,86.675,86.65,2.86038308]
[1773272832096,28.84103396,86.683,86.651,0.65667533]
[1773272832303,11.53481774,86.695,86.661,0.65667533]
[1773272832517,11.53481774,86.695,86.671,0.65667533]
[1773272832817,0.11696456,86.705,86.671,0.65667533]
[1773272833022,0.11696456,86.705,86.65,40.39228404]
[1773272833023,0.11696456,86.705,86.68,2.86038308]
[1773272833208,0.11696456,86.703,86.651,1.15405477]
[1773272833395,0.11696456,86.703,86.496,11.54114581]
[1773272833396,0.11696456,86.669,86.621,0.65667533]
[1773272833601,2.86038308,86.66,86.621,0.65667533]
[1773272833800,0.11696456,86.669,86.621,0.65667533]
[1773272834600,0.11681521,86.668,86.623,0.65667533]
[1773272836017,0.11674182,86.659,86.623,0.65667533]
[1773272836833,11.65622415,86.659,86.625,0.65667533]
[1773272837814,11.53948233,86.659,86.625,0.65667533]
[1773272837993,11.5388648,86.664,86.631,0.65667533]
[1773272838797,11.53828402,86.668,86.633,0.65667533]
[1773272839618,11.53828402,86.668,86.641,0.65667533]
[1773272840117,0.11638733,86.667,86.614,0.69731508]
[1773272840304,0.11638733,86.638,86.61,1e-08]
[1773272840501,2.86038308,86.62,86.61,1e-08]
[1773272840802,2.86038308,86.63,86.61,1e-08]
[1773272841017,11.54347851,86.629,86.61,1e-08]
[1773272841824,11.54290724,86.634,86.61,1e-08]